Cogmind - Beta 10.2 *** ADVENTURER MODE // 2021.07.05 @ 21:21:18 Player: Chronit Result: Self-destructed Performance ------------- Evolutions (1) 500 Regions Visited (2) 400 Robots Destroyed (11) 55 Value Destroyed (194) 194 Prototype IDs (0) 0 Alien Tech Used (0) 0 Bonus (0) 0 TOTAL SCORE: 1149 Bonus ------- None Cogmind --------- Core Integrity 368/400 Matter 300/300 Energy 97/100 System Corruption 0% Temperature Cool (32) Movement Treading (160) Location -9/Materials Parts ------- > --- POWER (1) -------- (None) > --- PROPULSION (3) --- Light Treads Light Treads > --- UTILITY (3) ------ Large Storage Unit Sensor Array Utility Shielding > --- WEAPON (2) ------- Medium Laser Light Assault Rifle > --- INVENTORY (10) --- Light Ion Engine Visual Processing Unit Sensor Array ECM Suite Peak State ------------ > --- POWER ------------ Light Ion Engine > --- PROPULSION ------- Light Treads Light Treads > --- UTILITY ---------- Large Storage Unit Sensor Array Utility Shielding > --- WEAPON ----------- Medium Laser Light Assault Rifle > --- INVENTORY -------- Light Ion Engine Visual Processing Unit Sensor Array ECM Suite [Rating: 8] Favorites ----------- Power Light Ion Engine Engine Light Ion Engine Propulsion Light Treads Treads Light Treads Utility Sensor Array Device Sensor Array Storage Small Storage Unit Protection Utility Shielding Weapon Light Assault Rifle Energy Gun Medium Laser Ballistic Gun Light Assault Rifle Build | -11 -10 -9 ------- Run | Scr Mat Mat Slots Evolved 2 | . . 2 Power . | . . . Propulsion 1 | . . 1 Utility 1 | . . 1 Weapon . | . . . Parts Attached 10 | 6 3 1 Power 1 | 1 . . Engine 1 | 1 . . Core . | . . . Reactor . | . . . Propulsion 2 | 2 . . Treads 2 | 2 . . Leg . | . . . Wheel . | . . . Hover . | . . . Flight . | . . . Utility 4 | 1 2 1 Device 1 | . 1 . Storage 2 | 1 1 . Processor . | . . . Hackware . | . . . Protection 1 | . . 1 Artifact . | . . . Weapon 3 | 2 1 . Energy Gun 2 | 1 1 . Energy Cannon . | . . . Ballistic Gun 1 | 1 . . Ballistic Cannon . | . . . Launcher . | . . . Special Weapon . | . . . Impact Weapon . | . . . Slashing Weapon . | . . . Piercing Weapon . | . . . Special Melee Weapon . | . . . Unidentified Prototypes . | . . . Parts Lost 1 | . . 1 Power 1 | . . 1 Propulsion . | . . . Utility . | . . . Weapon . | . . . Highest Loss Streak 1 | . . 1 Average Slot Usage (%) 96 | . 98 85 Engine 13 | . 14 8 Treads 27 | . 28 22 Device 12 | . 12 11 Storage 13 | . 14 11 Protection 1 | . . 11 Energy Gun 13 | . 14 11 Ballistic Gun 13 | . 14 11 Naked Turns . | . . . Heaviest Build 24 | 9 23 24 Greatest Support 40 | 40 40 40 Greatest Overweight (x) 2 | 2 . . Average Overweight (x) . | . . . Largest Inventory Capacity 10 | 6 10 10 Average Capacity 6 | 5 6 10 Most Carried 6 | 4 6 4 Average Carried 3 | 1 4 4 Final Capacity 10 | 6 10 10 Final Carried 5 | 1 5 4 Class Distribution -------------------- 100% | Mutant Dominant Class ---------------- Mutant | -10/Materials Mutant | -9/Materials Resources | -11 -10 -9 ----------- Run | Scr Mat Mat Matter Collected 307 | 213 77 17 Remotely . | . . . Salvage Created 253 | . 166 87 Parts 19 | . 9 10 Haulers Intercepted . | . . . Recyclers Shooed . | . . . Parts Field Recycled . | . . . Retrieved Matter . | . . . Parts Self-Destructed . | . . . Prevented . | . . . Kills | -11 -10 -9 ------- Run | Scr Mat Mat Combat Hostiles Destroyed 9 | . 3 6 Melee 1 | . . 1 Guns 8 | . 3 5 Classes Destroyed 3 | . 2 1 Watcher 2 | . 2 . Swarmer 6 | . . 6 Grunt 3 | . 3 . Best Kill Streak 6 | . 3 6 Combat Bots Only 6 | . 3 6 Max Kills in Single Turn 2 | . 1 2 Gunslinging 1 | . . 1 Exploded . | . . . Melee 1 | . . 1 Uniques/NPCs Destroyed . | . . . Combat | -11 -10 -9 -------- Run | Scr Mat Mat Damage Taken 305 | . 68 237 Core 41 | . 9 32 Absorbed by Shields . | . . . Core Remaining (%) 98 | 100 96 . Volleys Fired 20 | . 13 7 Largest 2 | . 2 2 Hottest 70 | . 70 70 Shots Fired 40 | . 26 14 Gun 40 | . 26 14 Cannon . | . . . Launcher . | . . . Special . | . . . Kinetic 20 | . 13 7 Thermal 20 | . 13 7 Explosive . | . . . Electromagnetic . | . . . Robot Hit Streak 26 | . 23 26 Robot Miss Streak 1 | . 1 1 Penetration Max . | . . . Secondary Targets 1 | . . 1 Max Gunslinging Chain 1 | . . 1 Shots Hit Robots 35 | . 23 12 Core Hits 15 | . 9 6 Critical Hits . | . . . Critical Kills . | . . . Critical Parts Destroyed . | . . . Melee Attacks . | . . . Impact . | . . . Slashing . | . . . Piercing . | . . . Sneak Attacks . | . . . Combat Hostiles . | . . . Follow-up Attacks . | . . . Damage Inflicted 377 | 4 245 128 Guns 367 | . 245 122 Cannons . | . . . Explosions . | . . . Melee . | . . . Ramming 10 | 4 . 6 Kinetic 152 | . 103 49 Thermal 215 | . 142 73 Explosive . | . . . Electromagnetic . | . . . Impact . | . . . Slashing . | . . . Piercing . | . . . Highest Corruption . | . . . Average Corruption . | . . . Corruption Purged . | . . . Overload Shots . | . . . Overflow Damage . | . . . Projectiles . | . . . Explosions . | . . . Melee . | . . . Knockbacks . | . . . Impact . | . . . Kinetic . | . . . Secondary . | . . . Self-Inflicted Damage . | . . . Shots . | . . . Rammed 3 | 1 . 2 Targets Rammed 4 | 1 . 3 Kicked . | . . . Crushed 1 | . . 1 Highest Temperature 218 | . 218 27 Average Temperature 72 | . 96 12 Received Heat Transfer 84 | . 48 36 Siege Activations . | . . . Robots Corrupted . | . . . Combat Hostiles . | . . . Parts Fried . | . . . Impact Corruptions . | . . . Robots Melted . | . . . Combat Hostiles . | . . . Parts Melted 1 | . 1 . Heat Transferred 629 | . 407 222 Parts Sabotaged . | . . . Parts Stolen . | . . . Parts Stripped . | . . . Power Chain Reactions . | . . . Missiles Intercepted . | . . . Alert | -11 -10 -9 ------- Run | Scr Mat Mat Peak Influence 145 | . 103 145 Initial . | . . . Average 10 | . 11 22 Maximum Alert Level . | . . . Low Security (%) 100 | 100 100 100 Level 1 . | . . . Level 2 . | . . . Level 3 . | . . . Level 4 . | . . . Level 5 . | . . . High Security . | . . . Max Security . | . . . Squads Dispatched 1 | . 1 . Investigation 1 | . 1 . Extermination . | . . . Reinforcement . | . . . Assault . | . . . Garrison . | . . . Intercept . | . . . Construction Impeded . | . . . Haulers Reinforced . | . . . Stealth | -11 -10 -9 --------- Run | Scr Mat Mat Distress Signals . | . . . Communications Jammed . | . . . Distress Signals . | . . . Times Spotted 15 | . 6 9 Peak Tracking Total 6 | . 3 6 Tactical Retreats . | . . . Traps | -11 -10 -9 ------- Run | Scr Mat Mat Traps Triggered 1 | . 1 . Indirectly . | . . . Trap Hack Attempts . | . . . Triggered . | . . . Disarmed . | . . . Reprogrammed . | . . . Reused . | . . . Traps Extracted . | . . . Installed . | . . . Triggered . | . . . Machines | -11 -10 -9 ---------- Run | Scr Mat Mat Machines Disabled . | . . . Max in Single Turn . | . . . Machines Sabotaged . | . . . Garrisons Compromised . | . . . Overloaded Fab Kills . | . . . Fab Network Shutdowns . | . . . Hacking | -11 -10 -9 --------- Run | Scr Mat Mat Machines Accessed 1 | . 1 . Terminals 1 | . 1 . Fabricators . | . . . Repair Stations . | . . . Recycling Units . | . . . Scanalyzers . | . . . Garrison Access . | . . . Total Hacks 1 | . 1 . Successful 1 | . 1 . Failed . | . . . Catastrophic . | . . . Database Lockouts . | . . . Manual . | . . . Terminals 1 | . 1 . Fabricators . | . . . Repair Stations . | . . . Recycling Units . | . . . Scanalyzers . | . . . Garrison Access . | . . . Terminal Hacks 1 | . 1 . Zone Layout 1 | . 1 . Fabricator Hacks . | . . . Repair Station Hacks . | . . . Recycling Unit Hacks . | . . . Scanalyzer . | . . . Garrison Access Hacks . | . . . Unauthorized Hacks . | . . . Terminals . | . . . Fabricators . | . . . Repair Stations . | . . . Recycling Units . | . . . Scanalyzers . | . . . Garrison Access . | . . . Data Cores Recovered . | . . . Used . | . . . Hacking Detections . | . . . Full Trace Events . | . . . Feedback Events . | . . . Feedback Blocked . | . . . Robot Schematics Acquired . | . . . Robots Built . | . . . Matter . | . . . Time . | . . . Total Robot Build Rating . | . . . Part Schematics Acquired . | . . . Parts Built . | . . . Matter . | . . . Time . | . . . Total Part Build Rating . | . . . Parts Repaired . | . . . Time . | . . . Parts Recycled . | . . . Recycled Matter . | . . . Retrieved Matter . | . . . Retrieved Components . | . . . Parts Scanalyzed . | . . . Part Schematics Acquired . | . . . Parts Damaged . | . . . Bothacking | -11 -10 -9 ------------ Run | Scr Mat Mat Used RIF Installer . | . . . Robots Hacked . | . . . Non-combat . | . . . Combat . | . . . Robot Hacks Applied . | . . . Relay Couplers Released . | . . . Robots Rewired . | . . . Allies Hacked . | . . . Hacks Repelled . | . . . Allies | -11 -10 -9 -------- Run | Scr Mat Mat Total Allies . | . . . Largest Group . | . . . Highest-Rated Group . | . . . Highest-Rated Ally . | . . . Total Orders . | . . . Ally Attacks . | . . . Total Damage . | . . . Kills . | . . . Allies Corrupted . | . . . Allies Melted . | . . . Intel | -11 -10 -9 ------- Run | Scr Mat Mat Robot Analysis Total . | . . . Derelict Logs Recovered . | . . . Drone Launches . | . . . Drone Recoveries . | . . . Exploration | -11 -10 -9 ------------- Run | Scr Mat Mat Turns Passed 699 | 104 512 83 Spaces Moved 343 | 63 244 36 Core 21 | 21 . . Treads 322 | 42 244 36 Legs . | . . . Wheels . | . . . Hover . | . . . Flight . | . . . Fastest Speed 50 | 50 160 160 Average Speed 156 | 141 160 160 Slowest Speed 160 | 160 160 160 Overloaded Moves . | . . . Propulsion Burnouts . | . . . Robots Hopped . | . . . Cave-ins Triggered . | . . . Exploration Rate (%) 15 | 4 36 5 Regions Visited 2 Branch Regions . Pre-discovered Areas . | . . . Known Exits Taken . | . . . Unknown Exits Taken 2 | 1 1 . Scrap Searched . | . . . Spaces Dug . | . . . Terrain Destroyed . | . . . Melee . | . . . Projectile . | . . . AOE . | . . . Terrain Rammed . | . . . Walls Destroyed . | . . . Machines Disabled . | . . . Actions | -11 -10 -9 --------- Run | Scr Mat Mat Total 467 | 78 342 47 Wait 74 | . 74 . Move 342 | 63 243 36 Hop . | . . . Pick Up 15 | 8 7 . Fast Attach . | . . . Attach 8 | 6 1 1 Detach . | . . . Swap 2 | . 2 . Drop 3 | 1 2 . Fire 20 | . 13 7 Melee . | . . . Ram . | . . . Kick . | . . . Crush 3 | . . 3 Escape Stasis . | . . . Rewire . | . . . Trap . | . . . Miscellaneous . | . . . Route ------- -11/Scrapyard -10/Materials -9/Materials History --------- Turn | Location | Event 23 | -11/Scrapyard | Discovered new exit (range 15) 105 | -11/Scrapyard | Entered Materials 308 | -10/Materials | Build established: Mutant 438 | -10/Materials | Discovered new exit (range 15) 617 | -10/Materials | Entered another Materials area 617 | -9/Materials | Evolved 2 slots: Propulsion x1, Utility x1 700 | -9/Materials | Self-destructed Last Messages --------------- 00687_ S-10 Pest destroyed. 00689_ Slammed into S-10 Pest. 00689_ Lgt. Ion Engine destroyed. 00689_ R-06 Scavenger collects Flight Unit. 00690_ Acquired 14 matter. 00690_ Slammed into S-10 Pest. 00691_ K-01 Serf collects debris. 00692_ S-10 Pest destroyed. 00692_ Switching to secondary target: S-10 Pest. 00692_ S-10 Pest destroyed. 00692_ R-06 Scavenger collects Lgt. Ion Engine. 00693_ Acquired 1 matter. 00693_ R-06 Scavenger collects Flight Unit. 00694_ K-01 Serf collects debris. 00695_ S-10 Pest destroyed. 00696_ Acquired 1 matter. 00697_ R-06 Scavenger collects Flight Unit. 00698_ K-01 Serf collects debris. 00699_ Acquired 1 matter. 00699_ R-06 Scavenger collects Lgt. Assault Rifle. Map ----- +----------------------------------------------------+ | ?????????????????????????????????????????????????? | | ?????????????????????????????????????????????????? | | ?????????????????????????????????????????????????? | | ?????????????????????????????????????????????????? | | ?????????????????????????????????????????????????? | | ?????????????????????????????????????????????????? | | ?????????????????????????????????????????????????? | | ?????????????????????????????????????????????????? | | ?????????????????????????????????????????????????? | | ?????????????????????????????????????????????????? | | ???????????????????????###???????????????????????? | | ?????????????????????# ???????????????????????? | | ?????????????????????? ???????????????????????? | | ?????????????????????? ???????????????????????? | | ?????????????????????? Y ???????????????????????? | | ?????????????????????? ???????????????????????? | | ??????????????????????# #??????????????????????? | | ??????????????????????# ########???????????????? | | ??????????????????????# # """ #???????????????? | | ??????????????????????# # "T" #???????????????? | | ??????????????????????# # #???????????????? | | ??????????????????????# # #???????????????? | | ??????????????????????# #* #???????????????? | | ??????????????????????# k#*% #???????????????? | | ??????????????????????# r%s%[! #???????????????? | | ??????????????????????# %@#[[! #???????????????? | | ????????????????? "T" Y r%#[[ #???????????????? | | ????????????????? """ # % # #???????????????? | | ???????????????? ??# # #???????????????? | | ???????????????######## ######/#???????????????? | | ????????######## #???????????????? | | ????????# # +???????????????? | | ????????# """ # #???????????????? | | ????????# """ + ###############???????????????? | | ????????# """ # #?????????????????????????????? | | ????????# # #?????????????????????????????? | | ????????# # #?????????????????????????????? | | ????????######## #?????????????????????????????? | | ???????????????# ###???????????????????????????? | | ???????????????# # #???????????????????????????? | | ???????????????# #???????????????????????????? | | ???????????????# # #???????????????????????????? | | ???????????????# ##????????????????????????????? | | ???????????????# #?????????????????????????????? | | ???????????????#####?????????????????????????????? | | ?????????????????????????????????????????????????? | | ?????????????????????????????????????????????????? | | ?????????????????????????????????????????????????? | | ?????????????????????????????????????????????????? | | ?????????????????????????????????????????????????? | +----------------------------------------------------+ Best States ------------- Heat Dissipation 28 Energy Generation 10 Energy Capacity 125 Matter Stores 300 Matter Capacity 300 Sight Range 16 Robot Scan Range 10 Terrain Scan Density 10 Resistance: KI 20 Resistance: TH 20 Resistance: EX 20 Resistance: EM 20 Resistance: I 20 Resistance: S 20 Resistance: P 20 Utility Shielding 33 Evasion (%) 40 Recoil Reduction 2 Offensive Hacking 10 Item Schematics ----------------- None Robot Schematics ------------------ None Fabricated ------------ Nothing Alien Tech Used ----------------- None Achievements -------------- None Challenges ------------ None Game ------ Seed TrackerSmallSplitter Manual? 0 Play Time 00:05:26 Cumulative 17.0 hours Start 2021.06.28 @ 17:02:45 End 2021.07.05 @ 21:21:18 Sessions 2 Manual Loads 0 Difficulty Adventurer Special Mode None Game No. 24 Rogue 2 Adventurer 22 Explorer 0 Win Type - Total 0 Types 0/0/0/0/0/0/0/0/0 Lore% 21 Gallery% 28 Achievement% 24 Wizard Run 0 Options --------- ASCII 0 Keyboard 0 Movement Numpad Keybinds 0 Fullscreen 1 Font 12/Terminus Map View 83x54 Tactical HUD 1 Map Filters NONE Filters NONE Steam 1 RUN: 9b6a0965-3eaf-4129-8157-8aa46813c1fa